fUST/lending_fUST_20260625
["ID","MTS","AMOUNT","RATE_DAILY","PERIOD"]
[426446243,1782402638000,-500.0,0.00024997,2]
[426446234,1782402638000,-1303.56603211,0.00023748,2]
[426446240,1782402638000,-338.33504481,0.00024996,2]
[426446233,1782402638000,-173.0,0.00022,2]
[426446237,1782402638000,-186.913354,0.00024581,2]
[426446236,1782402638000,-2511.12644886,0.00023921,2]
[426446232,1782402638000,-309.63360179,0.0002183,6]
[426446235,1782402638000,-376.67354866,0.00023748,2]
[426446239,1782402638000,-536.44,0.00024988,3]
[426446230,1782402638000,-332.69170523,0.00021379,2]
[426446261,1782402638000,-151.0,0.00024998,2]
[426446266,1782402638000,-151.0,0.00024998,2]
[426446262,1782402638000,-151.0,0.00024998,2]
[426446294,1782402638000,-197.507591,0.00024998,2]
[426446287,1782402638000,-197.507591,0.00024998,2]
[426446291,1782402638000,-197.507591,0.00024998,2]
[426446301,1782402638000,-151.0,0.00024998,2]
[426446300,1782402638000,-151.0,0.00024998,2]
[426446296,1782402638000,-197.507591,0.00024998,2]
[426446297,1782402638000,-197.507591,0.00024998,2]
[426446299,1782402638000,-197.507597,0.00024998,2]
[426446298,1782402638000,-197.507591,0.00024998,2]
[426446295,1782402638000,-197.507591,0.00024998,2]
[426446305,1782402638000,-151.0,0.00024998,2]
[426446303,1782402638000,-151.0,0.00024998,2]
[426446302,1782402638000,-151.0,0.00024998,2]
[426446307,1782402638000,-151.0,0.00024998,2]
[426446306,1782402638000,-151.0,0.00024998,2]
[426446308,1782402638000,-151.0,0.00024998,2]
[426446263,1782402638000,-151.0,0.00024998,2]
[426446288,1782402638000,-197.507591,0.00024998,2]
[426446292,1782402638000,-197.507591,0.00024998,2]
[426446304,1782402638000,-151.0,0.00024998,2]
[426446284,1782402638000,-197.507591,0.00024998,2]
[426446264,1782402638000,-151.0,0.00024998,2]
[426446290,1782402638000,-197.507591,0.00024998,2]
[426446272,1782402638000,-151.0,0.00024998,2]
[426446271,1782402638000,-151.0,0.00024998,2]
[426446273,1782402638000,-151.0,0.00024998,2]
[426446281,1782402638000,-197.507591,0.00024998,2]
[426446277,1782402638000,-151.0,0.00024998,2]
[426446275,1782402638000,-151.0,0.00024998,2]
[426446279,1782402638000,-189.363928,0.00024998,2]
[426446278,1782402638000,-224.597698,0.00024998,2]
[426446274,1782402638000,-151.0,0.00024998,2]
[426446282,1782402638000,-197.507591,0.00024998,2]
[426446280,1782402638000,-197.507591,0.00024998,2]
[426446276,1782402638000,-162.253024,0.00024998,2]
[426446289,1782402638000,-197.507591,0.00024998,2]
[426446285,1782402638000,-197.507591,0.00024998,2]
[426446283,1782402638000,-197.507591,0.00024998,2]
[426446293,1782402638000,-197.507591,0.00024998,2]
[426446286,1782402638000,-197.507591,0.00024998,2]
[426446338,1782402639000,-785.37982,0.00024998,2]
[426446347,1782402639000,-785.37982,0.00024998,2]
[426446346,1782402639000,-785.37982,0.00024998,2]
[426446344,1782402639000,-785.37982,0.00024998,2]
[426446343,1782402639000,-785.37982,0.00024998,2]
[426446341,1782402639000,-785.37982,0.00024998,2]
[426446340,1782402639000,-785.37982,0.00024998,2]
[426446345,1782402639000,-785.37982,0.00024998,2]
[426446348,1782402639000,-785.37982,0.00024998,2]
[426446342,1782402639000,-785.37982,0.00024998,2]
[426446349,1782402639000,-785.37982,0.00024998,2]
[426446358,1782402639000,-167.247745,0.00024998,2]
[426446352,1782402639000,-785.37982,0.00024998,2]
[426446351,1782402639000,-785.37982,0.00024998,2]
[426446354,1782402639000,-785.37982,0.00024998,2]
[426446353,1782402639000,-785.37982,0.00024998,2]
[426446355,1782402639000,-785.37982,0.00024998,2]
[426446357,1782402639000,-167.247745,0.00024998,2]
[426446359,1782402639000,-167.247745,0.00024998,2]
[426446356,1782402639000,-785.379823,0.00024998,2]
[426446360,1782402639000,-167.247745,0.00024998,2]
[426446361,1782402639000,-167.247745,0.00024998,2]
[426446336,1782402639000,-785.37982,0.00024998,2]
[426446350,1782402639000,-785.37982,0.00024998,2]
[426446337,1782402639000,-785.37982,0.00024998,2]
[426446313,1782402639000,-151.0,0.00024998,2]
[426446334,1782402639000,-714.89622,0.00024998,2]
[426446319,1782402639000,-714.89622,0.00024998,2]
[426446309,1782402639000,-151.0,0.00024998,2]
[426446310,1782402639000,-151.0,0.00024998,2]
[426446311,1782402639000,-151.0,0.00024998,2]
[426446312,1782402639000,-151.0,0.00024998,2]
[426446317,1782402639000,-714.89622,0.00024998,2]
[426446318,1782402639000,-714.89622,0.00024998,2]
[426446316,1782402639000,-714.89622,0.00024998,2]
[426446315,1782402639000,-714.89622,0.00024998,2]
[426446314,1782402639000,-290.23070398,0.00024998,2]
[426446320,1782402639000,-714.89622,0.00024998,2]
[426446335,1782402639000,-714.896215,0.00024998,2]
[426446362,1782402639000,-167.247745,0.00024998,2]
[426446323,1782402639000,-714.89622,0.00024998,2]
[426446324,1782402639000,-714.89622,0.00024998,2]
[426446325,1782402639000,-714.89622,0.00024998,2]
[426446326,1782402639000,-714.89622,0.00024998,2]
[426446327,1782402639000,-714.89622,0.00024998,2]
[426446328,1782402639000,-714.89622,0.00024998,2]
[426446331,1782402639000,-714.89622,0.00024998,2]
[426446330,1782402639000,-165.94555613,0.00024998,3]
[426446329,1782402639000,-714.89622,0.00024998,2]
[426446332,1782402639000,-714.89622,0.00024998,2]
[426446333,1782402639000,-714.89622,0.00024998,2]
[426446322,1782402639000,-714.89622,0.00024998,2]
[426446363,1782402639000,-167.247745,0.00024998,2]
[426446321,1782402639000,-714.89622,0.00024998,2]
[426446371,1782402639000,-167.247745,0.00024998,2]
[426446396,1782402639000,-1062.074151,0.00024998,2]
[426446397,1782402639000,-1062.074151,0.00024998,2]
[426446398,1782402639000,-1062.074151,0.00024998,2]
[426446406,1782402639000,-151.0,0.00024998,2]
[426446407,1782402639000,-151.0,0.00024998,2]
[426446405,1782402639000,-151.0,0.00024998,2]
[426446401,1782402639000,-1062.074144,0.00024998,2]
[426446403,1782402639000,-151.0,0.00024998,2]
[426446402,1782402639000,-151.0,0.00024998,2]
[426446400,1782402639000,-1062.074151,0.00024998,2]
[426446399,1782402639000,-1062.074151,0.00024998,2]
[426446389,1782402639000,-1062.074151,0.00024998,2]
[426446408,1782402639000,-151.0,0.00024998,2]
[426446419,1782402639000,-1584.407648,0.00024998,2]
[426446412,1782402639000,-694.917878,0.00024998,2]
[426446409,1782402639000,-151.0,0.00024998,2]
[426446410,1782402639000,-187.674479,0.00024998,2]
[426446414,1782402639000,-694.917878,0.00024998,2]
[426446418,1782402639000,-694.917878,0.00024998,2]
[426446416,1782402639000,-694.917878,0.00024998,2]
[426446413,1782402639000,-1584.407648,0.00024998,2]
[426446417,1782402639000,-1584.407648,0.00024998,2]
[426446415,1782402639000,-1584.407648,0.00024998,2]
[426446364,1782402639000,-167.247745,0.00024998,2]
[426446411,1782402639000,-694.917878,0.00024998,2]
[426446387,1782402639000,-1062.074151,0.00024998,2]
[426446404,1782402639000,-151.0,0.00024998,2]
[426446392,1782402639000,-1062.074151,0.00024998,2]
[426446385,1782402639000,-1062.074151,0.00024998,2]
[426446369,1782402639000,-167.247745,0.00024998,2]
[426446367,1782402639000,-167.247745,0.00024998,2]
[426446368,1782402639000,-167.247745,0.00024998,2]
[426446365,1782402639000,-167.247745,0.00024998,2]
[426446370,1782402639000,-167.247745,0.00024998,2]
[426446366,1782402639000,-167.247745,0.00024998,2]
[426446373,1782402639000,-151.0,0.00024998,2]
[426446374,1782402639000,-167.247745,0.00024998,2]
[426446375,1782402639000,-151.0,0.00024998,2]
[426446383,1782402639000,-1062.074151,0.00024998,2]
[426446372,1782402639000,-167.247745,0.00024998,2]
[426446379,1782402639000,-160.054124,0.00024998,2]
[426446376,1782402639000,-167.247745,0.00024998,2]
[426446377,1782402639000,-151.0,0.00024998,2]
[426446394,1782402639000,-1062.074151,0.00024998,2]
[426446395,1782402639000,-1062.074151,0.00024998,2]
[426446391,1782402639000,-1062.074151,0.00024998,2]
[426446393,1782402639000,-1062.074151,0.00024998,2]
[426446386,1782402639000,-1062.074151,0.00024998,2]
[426446390,1782402639000,-1062.074151,0.00024998,2]
[426446380,1782402639000,-167.247739,0.00024998,2]
[426446378,1782402639000,-167.247745,0.00024998,2]
[426446381,1782402639000,-1062.074151,0.00024998,2]
[426446382,1782402639000,-1062.074151,0.00024998,2]
[426446384,1782402639000,-1062.074151,0.00024998,2]
[426446460,1782402640000,-151.0,0.00024998,2]
[426446459,1782402640000,-151.0,0.00024998,2]
[426446467,1782402640000,-170.118923,0.00024998,2]
[426446468,1782402640000,-262.4037,0.00024998,2]
[426446466,1782402640000,-151.0,0.00024998,2]
[426446454,1782402640000,-151.0,0.00024998,2]
[426446455,1782402640000,-151.0,0.00024998,2]
[426446453,1782402640000,-151.0,0.00024998,2]
[426446452,1782402640000,-151.0,0.00024998,2]
[426446451,1782402640000,-151.0,0.00024998,2]
[426446457,1782402640000,-151.0,0.00024998,2]
[426446458,1782402640000,-151.0,0.00024998,2]
[426446464,1782402640000,-151.0,0.00024998,2]
[426446475,1782402640000,-262.4037,0.00024998,2]
[426446463,1782402640000,-151.0,0.00024998,2]
[426446465,1782402640000,-151.0,0.00024998,2]
[426446462,1782402640000,-151.0,0.00024998,2]
[426446470,1782402640000,-262.4037,0.00024998,2]
[426446480,1782402640000,-262.4037,0.00024998,2]
[426446481,1782402640000,-262.4037,0.00024998,2]
[426446469,1782402640000,-262.4037,0.00024998,2]
[426446473,1782402640000,-262.4037,0.00024998,2]
[426446471,1782402640000,-262.4037,0.00024998,2]
[426446476,1782402640000,-262.4037,0.00024998,2]
[426446477,1782402640000,-262.4037,0.00024998,2]
[426446474,1782402640000,-262.4037,0.00024998,2]
[426446450,1782402640000,-1584.407653,0.00024998,2]
[426446461,1782402640000,-151.0,0.00024998,2]
[426446448,1782402640000,-1584.407648,0.00024998,2]
[426446432,1782402640000,-1584.407648,0.00024998,2]
[426446447,1782402640000,-694.917868,0.00024998,2]
[426446420,1782402640000,-694.917878,0.00024998,2]
[426446422,1782402640000,-694.917878,0.00024998,2]
[426446478,1782402640000,-262.4037,0.00024998,2]
[426446421,1782402640000,-1584.407648,0.00024998,2]
[426446424,1782402640000,-694.917878,0.00024998,2]
[426446426,1782402640000,-694.917878,0.00024998,2]
[426446430,1782402640000,-1584.407648,0.00024998,2]
[426446423,1782402640000,-1584.407648,0.00024998,2]
[426446428,1782402640000,-694.917878,0.00024998,2]
[426446427,1782402640000,-1584.407648,0.00024998,2]
[426446429,1782402640000,-694.917878,0.00024998,2]
[426446425,1782402640000,-1584.407648,0.00024998,2]
[426446431,1782402640000,-694.917878,0.00024998,2]
[426446449,1782402640000,-1584.407648,0.00024998,2]
[426446433,1782402640000,-694.917878,0.00024998,2]
[426446441,1782402640000,-694.917878,0.00024998,2]
[426446436,1782402640000,-1584.407648,0.00024998,2]
[426446438,1782402640000,-1584.407648,0.00024998,2]
[426446440,1782402640000,-694.917878,0.00024998,2]
[426446439,1782402640000,-1584.407648,0.00024998,2]
[426446444,1782402640000,-1584.407648,0.00024998,2]
[426446442,1782402640000,-1584.407648,0.00024998,2]
[426446435,1782402640000,-694.917878,0.00024998,2]
[426446437,1782402640000,-694.917878,0.00024998,2]
[426446443,1782402640000,-694.917878,0.00024998,2]
[426446446,1782402640000,-1584.407648,0.00024998,2]
[426446456,1782402640000,-151.0,0.00024998,2]
[426446445,1782402640000,-694.917878,0.00024998,2]
[426446434,1782402640000,-1584.407648,0.00024998,2]
[426446479,1782402640000,-262.4037,0.00024998,2]
[426446472,1782402640000,-262.4037,0.00024998,2]
[426446485,1782402640000,-262.4037,0.00024998,2]
[426446519,1782402640000,-250.599271,0.00024998,2]
[426446518,1782402640000,-250.599271,0.00024998,2]
[426446515,1782402640000,-250.599271,0.00024998,2]
[426446517,1782402640000,-250.599271,0.00024998,2]
[426446516,1782402640000,-250.599271,0.00024998,2]
[426446522,1782402640000,-250.599271,0.00024998,2]
[426446532,1782402640000,-478.478404,0.00024998,2]
[426446521,1782402640000,-250.599271,0.00024998,2]
[426446533,1782402640000,-478.478404,0.00024998,2]
[426446523,1782402640000,-250.599271,0.00024998,2]
[426446530,1782402640000,-189.858204,0.00024998,2]
[426446525,1782402640000,-250.599271,0.00024998,2]
[426446529,1782402640000,-151.0,0.00024998,2]
[426446509,1782402640000,-250.599271,0.00024998,2]
[426446526,1782402640000,-250.599271,0.00024998,2]
[426446527,1782402640000,-250.599276,0.00024998,2]
[426446528,1782402640000,-151.0,0.00024998,2]
[426446531,1782402640000,-478.478404,0.00024998,2]
[426446534,1782402640000,-478.478404,0.00024998,2]
[426446536,1782402640000,-478.478404,0.00024998,2]
[426446540,1782402640000,-478.478404,0.00024998,2]
[426446535,1782402640000,-478.478404,0.00024998,2]
[426446541,1782402640000,-151.0,0.00024998,2]
[426446538,1782402640000,-478.478404,0.00024998,2]
[426446543,1782402640000,-151.0,0.00024998,2]
[426446539,1782402640000,-151.0,0.00024998,2]
[426446482,1782402640000,-262.4037,0.00024998,2]
[426446542,1782402640000,-478.478404,0.00024998,2]
[426446524,1782402640000,-250.599271,0.00024998,2]
[426446511,1782402640000,-250.599271,0.00024998,2]
[426446537,1782402640000,-478.478404,0.00024998,2]
[426446514,1782402640000,-250.599271,0.00024998,2]
[426446512,1782402640000,-250.599271,0.00024998,2]
[426446486,1782402640000,-262.4037,0.00024998,2]
[426446484,1782402640000,-262.4037,0.00024998,2]
[426446494,1782402640000,-534.446748,0.00024998,2]
[426446490,1782402640000,-534.446748,0.00024998,2]
[426446492,1782402640000,-534.446748,0.00024998,2]
[426446483,1782402640000,-262.4037,0.00024998,2]
[426446488,1782402640000,-534.446748,0.00024998,2]
[426446489,1782402640000,-534.446748,0.00024998,2]
[426446487,1782402640000,-262.403699,0.00024998,2]
[426446491,1782402640000,-534.446748,0.00024998,2]
[426446507,1782402640000,-534.446739,0.00024998,2]
[426446506,1782402640000,-534.446748,0.00024998,2]
[426446495,1782402640000,-534.446748,0.00024998,2]
[426446493,1782402640000,-534.446748,0.00024998,2]
[426446498,1782402640000,-534.446748,0.00024998,2]
[426446520,1782402640000,-250.599271,0.00024998,2]
[426446510,1782402640000,-250.599271,0.00024998,2]
[426446513,1782402640000,-250.599271,0.00024998,2]
[426446508,1782402640000,-250.599271,0.00024998,2]
[426446496,1782402640000,-534.446748,0.00024998,2]
[426446500,1782402640000,-534.446748,0.00024998,2]
[426446505,1782402640000,-534.446748,0.00024998,2]
[426446501,1782402640000,-534.446748,0.00024998,2]
[426446502,1782402640000,-534.446748,0.00024998,2]
[426446503,1782402640000,-534.446748,0.00024998,2]
[426446497,1782402640000,-534.446748,0.00024998,2]
[426446499,1782402640000,-534.446748,0.00024998,2]
[426446504,1782402640000,-534.446748,0.00024998,2]
[426446590,1782402641000,-186.913354,0.00026305,2]
[426446586,1782402641000,-160.0,0.00025585,2]
[426446585,1782402641000,-200.0,0.000251,2]
[426446582,1782402641000,-993.063953,0.00024998,2]
[426446576,1782402641000,-255.881036,0.00024998,2]
[426446581,1782402641000,-993.063953,0.00024998,2]
[426446579,1782402641000,-993.063953,0.00024998,2]
[426446580,1782402641000,-993.063953,0.00024998,2]
[426446578,1782402641000,-993.063953,0.00024998,2]
[426446577,1782402641000,-993.063953,0.00024998,2]
[426446583,1782402641000,-993.063953,0.00024998,2]
[426446587,1782402641000,-160.0,0.00025585,2]
[426446602,1782402641000,-447.224,0.0002706,2]
[426446588,1782402641000,-160.0,0.00025585,2]
[426446589,1782402641000,-590.53932934,0.00026282,2]
[426446592,1782402641000,-300.0,0.00026358,2]
[426446591,1782402641000,-357.6,0.00026358,3]
[426446595,1782402641000,-160.0,0.00027,7]
[426446596,1782402641000,-160.0,0.00027,3]
[426446604,1782402641000,-151.0,0.00027363,6]
[426446594,1782402641000,-559.5571648,0.00026624,2]
[426446598,1782402641000,-1843.0,0.0002706,2]
[426446599,1782402641000,-2005.913,0.0002706,2]
[426446597,1782402641000,-1420.0,0.0002706,2]
[426446603,1782402641000,-215.70997394,0.00027326,2]
[426446575,1782402641000,-151.0,0.00024998,2]
[426446584,1782402641000,-151.6,0.00025099,5]
[426446574,1782402641000,-151.0,0.00024998,2]
[426446555,1782402641000,-478.478404,0.00024998,2]
[426446566,1782402641000,-151.0,0.00024998,2]
[426446546,1782402641000,-478.478404,0.00024998,2]
[426446544,1782402641000,-478.478404,0.00024998,2]
[426446545,1782402641000,-151.0,0.00024998,2]
[426446548,1782402641000,-478.478404,0.00024998,2]
[426446556,1782402641000,-478.478399,0.00024998,2]
[426446557,1782402641000,-151.0,0.00024998,2]
[426446558,1782402641000,-151.0,0.00024998,2]
[426446559,1782402641000,-188.976777,0.00024998,2]
[426446547,1782402641000,-151.0,0.00024998,2]
[426446549,1782402641000,-171.477833,0.00024998,2]
[426446550,1782402641000,-478.478404,0.00024998,2]
[426446552,1782402641000,-478.478404,0.00024998,2]
[426446553,1782402641000,-478.478404,0.00024998,2]
[426446551,1782402641000,-478.478404,0.00024998,2]
[426446554,1782402641000,-478.478404,0.00024998,2]
[426446560,1782402641000,-153.72882096,0.00024998,2]
[426446563,1782402641000,-151.0,0.00024998,2]
[426446562,1782402641000,-151.0,0.00024998,2]
[426446564,1782402641000,-151.0,0.00024998,2]
[426446570,1782402641000,-151.0,0.00024998,2]
[426446561,1782402641000,-151.0,0.00024998,2]
[426446567,1782402641000,-151.0,0.00024998,2]
[426446573,1782402641000,-151.0,0.00024998,2]
[426446571,1782402641000,-151.0,0.00024998,2]
[426446565,1782402641000,-151.0,0.00024998,2]
[426446572,1782402641000,-151.0,0.00024998,2]
[426446568,1782402641000,-151.0,0.00024998,2]
[426446569,1782402641000,-151.0,0.00024998,2]
[426446601,1782402641000,-187.313,0.0002706,2]
[426446593,1782402641000,-198.39239325,0.00026407,2]
[426446606,1782402641000,-2173.66101496,0.00027383,2]
[426446638,1782402641000,-357.10630784,0.00031282,2]
[426446640,1782402641000,-1007.20289664,0.00031515,2]
[426446641,1782402641000,-327.2808408,0.00031727,2]
[426446637,1782402641000,-157.3,0.000309,120]
[426446636,1782402641000,-381.53,0.00030137,30]
[426446643,1782402641000,-500.0,0.00032,120]
[426446646,1782402641000,-327.2808408,0.00032137,2]
[426446645,1782402641000,-458.4896001,0.00032137,2]
[426446644,1782402641000,-458.4896001,0.00032137,2]
[426446647,1782402641000,-458.4896001,0.00032149,2]
[426446649,1782402641000,-160.27565529,0.00032252,2]
[426446650,1782402641000,-158.7724705,0.00032256,2]
[426446653,1782402641000,-177.95767026,0.00032262,2]
[426446654,1782402641000,-174.11707366,0.00032262,2]
[426446652,1782402641000,-154.43919967,0.00032262,2]
[426446651,1782402641000,-160.67012238,0.00032262,2]
[426446655,1782402641000,-157.45231238,0.00032264,2]
[426446657,1782402641000,-165.00590614,0.0003228,2]
[426446659,1782402641000,-151.1388316,0.00032288,2]
[426446656,1782402641000,-182.80507282,0.00032264,2]
[426446658,1782402641000,-1044.86666667,0.00032286,2]
[426446662,1782402641000,-7515.849709,0.00032614,2]
[426446660,1782402641000,-158.02251384,0.00032288,2]
[426446664,1782402641000,-161.917096,0.0003267,2]
[426446661,1782402641000,-204.472146,0.00032614,14]
[426446663,1782402641000,-224.132929,0.00032614,14]
[426446600,1782402641000,-745.0,0.0002706,2]
[426446639,1782402641000,-327.2808408,0.00031437,2]
[426446633,1782402641000,-745.0,0.0003006,2]
[426446648,1782402641000,-211.61650363,0.00032235,2]
[426446635,1782402641000,-381.53,0.00030137,30]
[426446609,1782402641000,-151.0,0.00027397,2]
[426446634,1782402641000,-445.0,0.0003006,2]
[426446616,1782402641000,-520.52407272,0.00027856,2]
[426446608,1782402641000,-151.0,0.00027397,2]
[426446605,1782402641000,-9150.0,0.00027383,2]
[426446607,1782402641000,-151.0,0.00027397,2]
[426446617,1782402641000,-165.0,0.00027868,3]
[426446610,1782402641000,-151.0,0.00027397,2]
[426446611,1782402641000,-151.0,0.00027397,2]
[426446612,1782402641000,-156.445375,0.00027397,2]
[426446614,1782402641000,-677.46650086,0.00027759,2]
[426446613,1782402641000,-677.46650086,0.00027613,2]
[426446618,1782402641000,-166.57229177,0.00027868,3]
[426446621,1782402641000,-160.0,0.00028,10]
[426446615,1782402641000,-520.52407272,0.00027773,2]
[426446623,1782402641000,-186.913354,0.0002803,2]
[426446642,1782402641000,-157.3,0.000319,120]
[426446622,1782402641000,-313.0,0.00028027,27]
[426446632,1782402641000,-1840.0,0.0003006,2]
[426446630,1782402641000,-285.226,0.00030052,2]
[426446626,1782402641000,-186.913354,0.00029755,2]
[426446629,1782402641000,-150.0,0.00030052,2]
[426446627,1782402641000,-247.764,0.00030052,2]
[426446631,1782402641000,-1420.0,0.0003006,2]
[426446625,1782402641000,-311.70200591,0.00029508,2]
[426446619,1782402641000,-296.95155179,0.00027868,3]
[426446624,1782402641000,-160.0,0.00029,10]
[426446620,1782402641000,-200.0,0.00027868,3]
[426446628,1782402641000,-249.07,0.00030052,2]
[426446708,1782402642000,-161.4320416,0.00033207,2]
[426446702,1782402642000,-348.23414731,0.00033186,2]
[426446706,1782402642000,-179.12036085,0.000332,117]
[426446698,1782402642000,-223.24852226,0.00033183,2]
[426446697,1782402642000,-193.358755,0.00033182,120]
[426446703,1782402642000,-314.90462477,0.00033188,2]
[426446699,1782402642000,-321.34024476,0.00033186,2]
[426446700,1782402642000,-308.87839935,0.00033186,2]
[426446705,1782402642000,-239.11432928,0.00033188,2]
[426446704,1782402642000,-365.61014565,0.00033188,2]
[426446707,1782402642000,-330.01181228,0.00033204,2]
[426446701,1782402642000,-355.91534052,0.00033186,2]
[426446710,1782402642000,-302.2776632,0.00033213,2]
[426446722,1782402642000,-151.0,0.00033437,2]
[426446712,1782402642000,-316.04502768,0.00033213,2]
[426446717,1782402642000,-1801.44798067,0.0003328,2]
[426446715,1782402642000,-196.692694,0.0003328,120]
[426446714,1782402642000,-227.049605,0.0003328,21]
[426446716,1782402642000,-5557.27860033,0.0003328,2]
[426446711,1782402642000,-239.89194988,0.00033213,2]
[426446713,1782402642000,-8734.414674,0.0003328,2]
[426446718,1782402642000,-196.692695,0.0003328,21]
[426446720,1782402642000,-327.2808408,0.00033337,2]
[426446723,1782402642000,-327.2808408,0.00033437,2]
[426446719,1782402642000,-458.4896001,0.00033337,2]
[426446721,1782402642000,-151.0,0.00033337,2]
[426446695,1782402642000,-224.13293,0.00033182,21]
[426446709,1782402642000,-835.89333333,0.0003321,2]
[426446694,1782402642000,-317.54494099,0.00033179,2]
[426446668,1782402642000,-245.71224395,0.00032876,2]
[426446688,1782402642000,-193.358755,0.00033152,21]
[426446729,1782402642000,-476.31741149,0.00033795,2]
[426446667,1782402642000,-202.657665,0.0003285,14]
[426446665,1782402642000,-169.428575,0.0003285,14]
[426446666,1782402642000,-765.647977,0.0003285,2]
[426446669,1782402642000,-157.3,0.000329,120]
[426446678,1782402642000,-169.428574,0.00033126,21]
[426446670,1782402642000,-151.0,0.00033037,2]
[426446671,1782402642000,-327.2808408,0.00033037,2]
[426446674,1782402642000,-150.0,0.00033052,2]
[426446677,1782402642000,-445.0,0.0003306,2]
[426446680,1782402642000,-151.0,0.00033137,2]
[426446679,1782402642000,-458.4896001,0.00033137,2]
[426446676,1782402642000,-257.105,0.0003306,2]
[426446696,1782402642000,-193.93353,0.00033182,21]
[426446675,1782402642000,-1414.0,0.0003306,2]
[426446681,1782402642000,-183.896412,0.00033137,2]
[426446673,1782402642000,-150.0,0.00033052,2]
[426446683,1782402642000,-151.0,0.00033137,2]
[426446691,1782402642000,-188.28629611,0.00033157,2]
[426446684,1782402642000,-458.4896001,0.00033137,2]
[426446686,1782402642000,-327.2808408,0.00033137,2]
[426446692,1782402642000,-423.23300725,0.00033157,2]
[426446693,1782402642000,-320.55131058,0.00033175,2]
[426446682,1782402642000,-458.4896001,0.00033137,2]
[426446685,1782402642000,-151.0,0.00033137,2]
[426446687,1782402642000,-190.024816,0.00033146,21]
[426446689,1782402642000,-2878.760892,0.00033152,2]
[426446690,1782402642000,-1935.363259,0.00033154,2]
[426446672,1782402642000,-458.4896001,0.00033037,2]
[426446730,1782402642000,-446.49704452,0.00033798,2]
[426446731,1782402642000,-1030.0,0.000338,7]
[426446724,1782402642000,-458.4896003,0.00033437,2]
[426446765,1782402642000,-846.46601451,0.00034182,2]
[426446759,1782402642000,-200.11499012,0.00034163,2]
[426446762,1782402642000,-413.41765917,0.00034163,2]
[426446761,1782402642000,-155.13800845,0.00034163,2]
[426446764,1782402642000,-564.85888834,0.00034182,2]
[426446767,1782402642000,-150.61591915,0.000342,2]
[426446766,1782402642000,-641.10262116,0.000342,2]
[426446768,1782402642000,-669.74556678,0.00034205,2]
[426446773,1782402642000,-696.46829463,0.00034212,2]
[426446775,1782402642000,-697.18013505,0.00034214,2]
[426446774,1782402642000,-629.80924954,0.00034214,2]
[426446784,1782402642000,-327.86291089,0.00034234,2]
[426446782,1782402642000,-162.90786732,0.00034234,2]
[426446763,1782402642000,-152.63634627,0.00034176,2]
[426446781,1782402642000,-315.77101828,0.00034234,2]
[426446779,1782402642000,-315.53410094,0.00034233,2]
[426446777,1782402642000,-660.02362456,0.00034231,2]
[426446780,1782402642000,-484.29612478,0.00034234,2]
[426446778,1782402642000,-632.09005537,0.00034231,2]
[426446786,1782402642000,-376.53164153,0.00034234,2]
[426446785,1782402642000,-558.10259398,0.00034234,2]
[426446787,1782402642000,-417.94666667,0.00034237,2]
[426446788,1782402642000,-802.87592677,0.00034237,2]
[426446789,1782402642000,-604.5553264,0.0003424,2]
[426446790,1782402642000,-719.67584964,0.0003424,2]
[426446791,1782402642000,-801.37827646,0.00034611,2]
[426446792,1782402642000,-772.19599837,0.00034622,2]
[426446725,1782402642000,-187.32,0.00033551,7]
[426446776,1782402642000,-717.34298785,0.00034214,2]
[426446771,1782402642000,-617.7567987,0.00034212,2]